Cogmind - Beta 13 @@@ ROGUE MODE // 2024.06.13 @ 02:49:06 Player: Comet Result: Self-destructed Performance ------------- Evolutions (5) 2500 Regions Visited (8) 1600 Robots Destroyed (184) 920 Value Destroyed (5685) 5685 Prototype IDs (8) 160 Alien Tech Used (0) 0 Bonus (1586) 1586 TOTAL SCORE: 12451 Bonus ------- High Alert Combat Kills 1014 Follower Combat Kills 592 Friendly Fire -20 Cogmind --------- Core Integrity 847/1000 Matter 300/300 Energy 85/150 System Corruption 0% Temperature Cool (0) Movement Rolling (120) Ox2 Location -5/Factory Parts ------- > --- POWER (2) -------- Micro Fission Core > --- PROPULSION (4) --- Wheel Wheel Compact Wheel Compact Wheel > --- UTILITY (7) ------ Cooling System Coolant Injector Huge Storage Unit Improved Signal Interpreter Medium Insulated Plating Dynamic Insulation System > --- WEAPON (4) ------- Cooled Particle Cannon Cooled Particle Cannon Cooled Particle Cannon > --- INVENTORY (25) --- Improved Treads Improved Treads Wheel Wheel Improved Heat Sink Improved Heat Sink Improved Heat Sink Cooling System Disposable Heat Sink High-capacity Battery (250) Improved Terrain Scanner Improved Terrain Scan Processor Transmission Jammer Medium Insulated Plating Hacking Suite System Restoration Module Improved Arc Projector Guided EMP Blaster Power Maul Peak State ------------ > --- POWER ------------ Improved Deuterium Engine Light Fission Core > --- PROPULSION ------- Wheel Armored Wheel Armored Huge Wheel > --- UTILITY ---------- Cooling System Coolant Injector Huge Storage Unit Improved Signal Interpreter Energy Filter Hardened Medium Armor Plating Drone Bay > --- WEAPON ----------- Improved Arc Projector Cooled Particle Cannon Cooled Particle Cannon Cooled Particle Cannon > --- INVENTORY -------- Micro Fission Core Wheel Compact Wheel Compact Wheel Improved Heat Sink Improved Heat Sink Improved Heat Sink Cooling System Disposable Heat Sink High-capacity Battery Improved Terrain Scanner Improved Terrain Scan Processor Transmission Jammer Medium Insulated Plating Medium Insulated Plating Medium Insulated Plating Hacking Suite Dynamic Insulation System System Restoration Module Improved Arc Projector Gauss Rifle Guided EMP Blaster Power Maul [Rating: 71] Favorites ----------- Power Improved Deuterium Engine Engine Improved Deuterium Engine Power Core Light Nuclear Core Propulsion Wheel Treads Light Treads Wheel Wheel Utility Cooling System Device Cooling System Storage Huge Storage Unit Processor Improved Signal Interpreter Protection Hardened Medium Armor Plating Weapon Cooled Particle Cannon Energy Gun Field Laser Energy Cannon Cooled Particle Cannon Ballistic Gun Heavy Assault Rifle Ballistic Cannon Light Cannon Launcher Improved Grenade Launcher Build | -11 -10 -9 -9 -8 -7 -7 -7 -5 ------- Run | Yrd Mat Mat Min Mat Fac Sto Rec Fac Slots Evolved 10 | . . 2 . 2 2 . . 4 Power 1 | . . . . . . . . 1 Propulsion 2 | . . . . . 2 . . . Utility 5 | . . . . 2 . . . 3 Weapon 2 | . . 2 . . . . . . Parts Attached 141 | 7 6 18 7 20 18 25 13 27 Power 11 | 1 1 2 . 1 . 1 . 5 Engine 7 | 1 . 2 . 1 . 1 . 2 Core 4 | . 1 . . . . . . 3 Reactor . | . . . . . . . . . Propulsion 40 | 2 1 5 1 2 7 7 7 8 Treads 13 | 2 1 4 . . 1 2 2 1 Leg . | . . . . . . . . . Wheel 27 | . . 1 1 2 6 5 5 7 Hover . | . . . . . . . . . Flight . | . . . . . . . . . Utility 35 | 1 2 1 . 7 5 7 4 8 Device 21 | . 1 1 . 3 4 4 3 5 Storage 3 | 1 1 . . 1 . . . . Processor 2 | . . . . . 1 . . 1 Hackware . | . . . . . . . . . Protection 9 | . . . . 3 . 3 1 2 Artifact . | . . . . . . . . . Weapon 55 | 3 2 10 6 10 6 10 2 6 Energy Gun 23 | 1 . 4 3 5 4 5 . 1 Energy Cannon 8 | . . . . 1 1 . 2 4 Ballistic Gun 18 | 2 1 5 1 3 1 4 . 1 Ballistic Cannon 1 | . 1 . . . . . . . Launcher 5 | . . 1 2 1 . 1 . . Special Weapon . | . . . . . . . . . Impact Weapon . | . . . . . . . . . Slashing Weapon . | . . . . . . . . . Piercing Weapon . | . . . . . . . . . Special Melee Weapon . | . . . . . . . . . Unidentified Prototypes 6 | . . 1 . 2 2 1 . . Parts Lost 28 | . . 1 . 2 5 1 5 14 Power 5 | . . . . . . 1 . 4 Propulsion 8 | . . . . 1 2 . 2 3 Utility 9 | . . 1 . 1 . . 2 5 Weapon 6 | . . . . . 3 . 1 2 Highest Loss Streak 5 | . . 1 . 1 2 1 5 3 To Critical Strikes . | . . . . . . . . . Average Slot Usage (%) 95 | . 94 98 100 97 89 99 94 89 Engine 7 | . 9 10 11 9 7 7 7 4 Treads 9 | . 28 19 11 5 2 7 6 1 Wheel 13 | . . 2 11 10 17 23 18 15 Device 14 | . 9 11 11 17 15 14 14 21 Storage 8 | . 14 11 11 9 7 7 7 5 Protection 5 | . . . . 9 7 6 6 4 Energy Gun 12 | . . 12 21 17 21 19 7 1 Energy Cannon 7 | . . . . . . 7 22 18 Ballistic Gun 9 | . 15 28 21 18 7 2 . 1 Ballistic Cannon 1 | . 12 1 . . . . . . Naked Turns . | . . . . . . . . . Heaviest Build 143 | 11 31 45 44 110 117 122 126 143 Greatest Support 58 | 40 40 43 16 20 30 30 48 58 Greatest Overweight (x) 11 | . . 4 4 10 10 4 11 4 Average Overweight (x) 2 | . . 1 2 3 4 3 2 2 Largest Inventory Capacity 25 | 8 15 15 15 25 25 25 25 25 Average Capacity 20 | 7 11 15 15 17 25 25 25 25 Most Carried 25 | 4 14 15 15 17 25 25 25 25 Average Carried 18 | 2 8 14 14 15 22 24 22 22 Final Capacity 25 | 8 15 15 15 25 25 25 25 25 Final Carried 25 | 4 14 15 15 17 25 25 25 20 Class Distribution -------------------- 37% | Scavenger-Tank 18% | Commander-Tank 16% | Scavenger-Gunner 11% | Mutant 8% | Tank Dominant Class ---------------- Mutant | -10/Materials Scavenger-Gunner | -9/Materials Scavenger-Gunner | -9/Mines Scavenger-Tank | -8/Materials Scavenger-Tank | -7/Factory Scavenger-Tank | -7/Storage Commander-Tank | -7/Recycling Scavenger-Skirmisher | -5/Factory Resources | -11 -10 -9 -9 -8 -7 -7 -7 -5 ----------- Run | Yrd Mat Mat Min Mat Fac Sto Rec Fac Matter Collected 3122 | 322 319 586 150 528 298 302 257 360 Remotely . | . . . . . . . . . Salvage Created 6839 | 125 211 868 217 1054 917 1119 818 1510 Parts 340 | 9 16 64 16 54 42 44 21 74 Haulers Intercepted 6 | . 1 2 . 2 1 . . . Recyclers Shooed 6 | . . . . 1 . 1 . 4 Parts Field Recycled . | . . . . . . . . . Retrieved Matter . | . . . . . . . . . Parts Self-Destructed . | . . . . . . . . . Prevented . | . . . . . . . . . Kills | -11 -10 -9 -9 -8 -7 -7 -7 -5 ------- Run | Yrd Mat Mat Min Mat Fac Sto Rec Fac Combat Hostiles Destroyed 119 | . 5 17 7 19 15 17 10 29 Guns 70 | . 1 14 3 16 11 15 7 3 Cannons 34 | . 4 1 . . 2 1 3 23 AOE 13 | . . 2 4 3 1 . . 3 Classes Destroyed 17 | 2 3 4 . 2 2 . 3 1 Worker 19 | . . 1 . 2 7 3 . 6 Builder 7 | . . 2 1 2 1 . . 1 Tunneler 5 | 3 . . . 2 . . . . Hauler 6 | . 1 2 . 2 1 . . . Recycler 14 | 1 . . 2 . 3 2 5 1 Operator 4 | . . . . 2 . 1 . 1 Watcher 10 | . 2 2 . 3 1 2 . . Swarmer 33 | . . 3 6 3 7 . 1 13 Grunt 42 | . 5 8 . 11 4 6 2 6 Brawler 1 | . . . . . . . 1 . Duelist 2 | . . . . 1 . . 1 . Protector 1 | . . . . . . . 1 . Sentry 22 | . . 6 1 4 1 8 1 1 Demolisher 1 | . . . . . . . 1 . Specialist 2 | . . . . . . . . 2 Hunter 7 | . . . . . 1 2 1 3 Programmer 8 | . . . . . 2 1 1 4 Best Kill Streak 9 | 3 4 4 3 7 8 4 7 9 Combat Bots Only 7 | . 2 4 3 6 3 4 7 7 Max Kills in Single Turn 5 | 1 1 2 2 3 2 1 2 5 Gunslinging . | . . . . . . . . . Exploded 3 | . . 2 2 3 1 . . 3 Melee . | . . . . . . . . . Uniques/NPCs Destroyed . | . . . . . . . . . Combat | -11 -10 -9 -9 -8 -7 -7 -7 -5 -------- Run | Yrd Mat Mat Min Mat Fac Sto Rec Fac Hostile Shots Fired 586 | . 37 46 13 57 80 144 51 158 Missed 182 | . 12 15 3 13 23 59 14 43 Damage Taken 6033 | . 347 428 103 707 954 824 528 2142 Core 575 | . 30 84 23 74 94 58 59 153 Absorbed by Shields 62 | . . . . . . . 14 48 Ignored by Resistances 81 | . . . . . . 17 15 49 Regen/Repaired (Parts) 100 | . . . . . . 100 . . Core Remaining (%) 83 | 100 88 . 73 86 . . 69 . Volleys Fired 320 | 13 33 36 11 54 49 45 20 59 Largest 4 | 2 2 4 4 4 4 4 4 4 Hottest 237 | 40 55 158 158 174 231 237 207 155 Shots Fired 1060 | 26 66 136 34 210 163 148 54 223 Gun 781 | 26 33 131 32 208 147 129 31 44 Cannon 273 | . 33 3 . . 16 19 23 179 Launcher 6 | . . 2 2 2 . . . . Special . | . . . . . . . . . Kinetic 401 | 26 66 96 16 104 38 14 9 32 Thermal 640 | . . 38 16 103 125 134 45 179 Explosive 6 | . . 2 2 2 . . . . Electromagnetic 13 | . . . . 1 . . . 12 Robot Hit Streak 20 | 5 10 12 6 13 13 20 15 14 Robot Miss Streak 5 | 2 2 3 2 5 5 3 4 5 Penetration Max 1 | . . . . . . . . 1 Secondary Targets 10 | . . 2 . 3 2 1 2 . Max Gunslinging Chain 1 | . . 1 . 1 1 1 1 . Shots Hit Robots 661 | 15 48 73 15 133 105 105 37 130 Core Hits 405 | 6 15 40 10 73 82 89 33 57 Critical Kills . | . . . . . . . . . Critical Parts Destroyed 1 | . . 1 . . . . . . Critical Strikes 9 | . 1 2 2 1 . 3 . . Burn 7 | . . 1 2 1 . 3 . . Destroy 1 | . . 1 . . . . . . Blast 1 | . 1 . . . . . . . Melee Attacks . | . . . . . . . . . Impact . | . . . . . . . . . Slashing . | . . . . . . . . . Piercing . | . . . . . . . . . Sneak Attacks . | . . . . . . . . . Combat Hostiles . | . . . . . . . . . Follow-up Attacks . | . . . . . . . . . Damage Inflicted 14474 | 176 736 1299 566 2400 1990 2170 1000 4137 Guns 8528 | 176 329 999 210 2153 1604 1895 601 561 Cannons 4649 | . 407 37 . . 299 275 381 3250 Explosions 1275 | . . 263 356 247 87 . . 322 Melee . | . . . . . . . . . Ramming 22 | . . . . . . . 18 4 Kinetic 3630 | 176 736 629 110 848 437 124 141 429 Thermal 9751 | . . 407 100 1319 1466 2046 841 3572 Explosive 837 | . . 263 356 218 . . . . Electromagnetic 234 | . . . . 15 87 . . 132 Impact . | . . . . . . . . . Slashing . | . . . . . . . . . Piercing . | . . . . . . . . . Highest Corruption 1 | . . . . . 1 1 1 . Average Corruption 1 | . . . . . 1 1 1 . Corruption Purged . | . . . . . . . . . Corruption Blocked . | . . . . . . . . . Effects 25 | . . . . . 4 10 11 . Message Errors 5 | . . . . . . 4 1 . Matter Fused 3 | . . . . . . . 3 . Heat Flow Errors 1 | . . . . . . . 1 . Energy Discharges 6 | . . . . . 1 2 3 . Parts Rejected 1 | . . . . . . . 1 . Parts Fused 1 | . . . . . 1 . . . Data Loss (minor) 4 | . . . . . 1 2 1 . Misfires 2 | . . . . . 1 . 1 . Alerts 1 | . . . . . . 1 . . Weapon Failures 1 | . . . . . . 1 . . Overload Shots . | . . . . . . . . . Overflow Damage 277 | . . 6 29 28 . . . 214 Projectiles 154 | . . . . . . . . 154 Explosions 123 | . . 6 29 28 . . . 60 Melee . | . . . . . . . . . Knockbacks 6 | . 6 . . . . . . . Impact . | . . . . . . . . . Kinetic 5 | . 5 . . . . . . . Secondary 1 | . 1 . . . . . . . Self-Inflicted Damage 283 | . . 52 24 24 34 . 9 140 Shots 6 | . . 1 1 1 1 . . 2 Rammed 2 | . . . . . . . 1 1 Targets Rammed 2 | . . . . . . . 1 1 Kicked . | . . . . . . . . . Crushed . | . . . . . . . . . Highest Temperature 541 | . 57 156 96 358 69 159 541 198 Average Temperature 75 | . 31 34 42 102 21 51 229 71 Received Heat Transfer 1365 | . 192 168 . 315 108 267 63 252 Effects 10 | . . . . . . . 10 . Shutdowns 1 | . . . . . . . 1 . Energy Bleed 1 | . . . . . . . 1 . Interference 5 | . . . . . . . 5 . Matter Decay 1 | . . . . . . . 1 . Damage (minor) 2 | . . . . . . . 2 . Siege Activations . | . . . . . . . . . Robots Corrupted . | . . . . . . . . . Combat Hostiles . | . . . . . . . . . Parts Fried . | . . . . . . . . . Impact Corruptions . | . . . . . . . . . Robots Melted 2 | . . . . . 1 1 . . Combat Hostiles 2 | . . . . . 1 1 . . Parts Melted 44 | . . 4 1 6 7 7 2 17 Heat Transferred 16071 | . . 1111 407 2800 2461 3329 1471 4492 Parts Sabotaged . | . . . . . . . . . Parts Stolen . | . . . . . . . . . Parts Stripped . | . . . . . . . . . Power Chain Reactions 1 | . . . . 1 . . . . Alert | -11 -10 -9 -9 -8 -7 -7 -7 -5 ------- Run | Yrd Mat Mat Min Mat Fac Sto Rec Fac Peak Influence 1313 | 20 135 438 356 639 443 573 576 1313 Initial 601 | . 13 55 117 138 262 201 214 601 Average 376 | 9 54 244 224 425 281 440 425 841 Maximum Alert Level 4 | . . 2 1 2 2 2 2 4 Low Security (%) 20 | 100 100 45 46 7 5 . . . Level 1 32 | . . 37 53 27 76 23 35 . Level 2 39 | . . 16 . 64 17 76 64 25 Level 3 5 | . . . . . . . . 58 Level 4 1 | . . . . . . . . 16 Level 5 . | . . . . . . . . . High Security . | . . . . . . . . . Max Security . | . . . . . . . . . Squads Dispatched 19 | . 2 1 . 3 3 4 . 6 Investigation 3 | . 1 . . 1 . 1 . . Extermination 2 | . . . . . 1 1 . . Reinforcement 13 | . 1 1 . 2 2 2 . 5 Assault . | . . . . . . . . . Garrison 1 | . . . . . . . . 1 Intercept . | . . . . . . . . . Searches Triggered 1 | . . . . . . . . 1 Construction Impeded 4 | . . . . . 1 1 . 2 Haulers Reinforced 2 | . . . . . 1 . . 1 Active Scanning Responses . | . . . . . . . . . Cargo Convoy Interrupts 1 | . . . . . . . . 1 Stealth | -11 -10 -9 -9 -8 -7 -7 -7 -5 --------- Run | Yrd Mat Mat Min Mat Fac Sto Rec Fac Distress Signals 6 | . 1 1 . . . 2 . 2 Communications Jammed . | . . . . . . . . . Distress Signals . | . . . . . . . . . Times Spotted 176 | . 13 23 8 29 21 18 19 45 Peak Tracking Total 12 | . 4 4 3 6 4 3 5 12 Tactical Retreats 14 | . 3 . . 2 3 2 . 4 Traps | -11 -10 -9 -9 -8 -7 -7 -7 -5 ------- Run | Yrd Mat Mat Min Mat Fac Sto Rec Fac Traps Triggered 9 | . 1 1 . 1 3 1 . 2 Indirectly . | . . . . . . . . . Trap Hack Attempts . | . . . . . . . . . Triggered . | . . . . . . . . . Disarmed . | . . . . . . . . . Reprogrammed . | . . . . . . . . . Reused . | . . . . . . . . . Traps Extracted . | . . . . . . . . . Installed . | . . . . . . . . . Triggered 1 | . . . 1 . . . . . Machines | -11 -10 -9 -9 -8 -7 -7 -7 -5 ---------- Run | Yrd Mat Mat Min Mat Fac Sto Rec Fac Machines Disabled 25 | . 1 2 1 4 4 2 . 11 Max in Single Turn 4 | . 1 1 1 1 4 1 . 4 Machines Repaired . | . . . . . . . . . Machines Dismantled . | . . . . . . . . . Machines Sabotaged . | . . . . . . . . . Overloaded Fab Kills . | . . . . . . . . . Hacking | -11 -10 -9 -9 -8 -7 -7 -7 -5 --------- Run | Yrd Mat Mat Min Mat Fac Sto Rec Fac Machines Accessed 22 | . 2 2 . 2 . 7 9 . Terminals 15 | . 2 2 . 2 . 6 3 . Fabricators . | . . . . . . . . . Repair Stations 1 | . . . . . . 1 . . Recycling Units 6 | . . . . . . . 6 . Scanalyzers . | . . . . . . . . . Garrison Access . | . . . . . . . . . Total Hacks 43 | . 7 3 . 3 . 14 16 . Successful 18 | . 3 2 . 1 . 4 8 . Failed 25 | . 4 1 . 2 . 10 8 . Catastrophic 10 | . . 1 . 2 . 5 2 . Database Lockouts . | . . . . . . . . . Manual 32 | . 7 3 . 3 . 7 12 . Terminals 31 | . 7 3 . 3 . 11 7 . Fabricators . | . . . . . . . . . Repair Stations 3 | . . . . . . 3 . . Recycling Units 9 | . . . . . . . 9 . Scanalyzers . | . . . . . . . . . Garrison Access . | . . . . . . . . . Terminal Hacks 10 | . 3 2 . 1 . 2 2 . Record 1 | . . . . . . . 1 . Part Schematic 6 | . 3 2 . 1 . . . . Prototype ID Bank 1 | . . . . . . . 1 . Open Door 2 | . . . . . . 2 . . Fabricator Hacks . | . . . . . . . . . Repair Station Hacks 2 | . . . . . . 2 . . Scan Component 1 | . . . . . . 1 . . Repair 1 | . . . . . . 1 . . Recycling Unit Hacks . | . . . . . . . . . Scanalyzer . | . . . . . . . . . Garrison Access Hacks . | . . . . . . . . . Unauthorized Hacks 6 | . . . . . . . 6 . Terminals . | . . . . . . . . . Fabricators . | . . . . . . . . . Repair Stations . | . . . . . . . . . Recycling Units 6 | . . . . . . . 6 . Tunnel 6 | . . . . . . . 6 . Scanalyzers . | . . . . . . . . . Garrison Access . | . . . . . . . . . Data Cores Recovered . | . . . . . . . . . Used . | . . . . . . . . . Hacking Detections 13 | . 2 1 . 1 . 6 3 . Full Trace Events 4 | . 1 . . . . 1 2 . Feedback Events . | . . . . . . . . . Feedback Blocked . | . . . . . . . . . Robot Schematics Acquired . | . . . . . . . . . Robots Built . | . . . . . . . . . Authchips . | . . . . . . . . . Time . | . . . . . . . . . Total Robot Build Rating . | . . . . . . . . . Part Schematics Acquired 5 | . 3 1 . 1 . . . . Parts Built . | . . . . . . . . . Authchips . | . . . . . . . . . Time . | . . . . . . . . . Total Part Build Rating . | . . . . . . . . . Parts Repaired 1 | . . . . . . 1 . . Time 19 | . . . . . . 19 . . Parts Recycled . | . . . . . . . . . Recycled Matter . | . . . . . . . . . Retrieved Matter . | . . . . . . . . . Retrieved Components . | . . . . . . . . . Parts Scanalyzed . | . . . . . . . . . Part Schematics Acquired . | . . . . . . . . . Parts Damaged . | . . . . . . . . . Bothacking | -11 -10 -9 -9 -8 -7 -7 -7 -5 ------------ Run | Yrd Mat Mat Min Mat Fac Sto Rec Fac Used RIF Installer . | . . . . . . . . . Robots Hacked . | . . . . . . . . . Non-combat . | . . . . . . . . . Combat . | . . . . . . . . . Robot Hacks Applied . | . . . . . . . . . Relay Couplers Released . | . . . . . . . . . Fabnet Peak Effective % . | . . . . . . . . . Robots Rewired 22 | . . . . . . . 22 . Allies Hacked . | . . . . . . . . . Hacks Repelled . | . . . . . . . . . Allies | -11 -10 -9 -9 -8 -7 -7 -7 -5 -------- Run | Yrd Mat Mat Min Mat Fac Sto Rec Fac Total Allies 22 | . . . . . . . 22 . Largest Group 12 | . . . . . . . 12 12 Highest-Rated Group 338 | . . . . . . . 338 338 Highest-Rated Ally 40 | . . . . . . . 40 40 Total Orders . | . . . . . . . . . Ally Attacks 71 | . . . . . . . 52 19 Total Damage 4280 | . . . . . . . 2324 1956 Kills 33 | . . . . . . . 20 13 Allies Corrupted . | . . . . . . . . . Allies Melted . | . . . . . . . . . Intel | -11 -10 -9 -9 -8 -7 -7 -7 -5 ------- Run | Yrd Mat Mat Min Mat Fac Sto Rec Fac Robot Analysis Total . | . . . . . . . . . Derelict Logs Recovered . | . . . . . . . . . Drone Launches 2 | . . . . . . . . 2 Drone Recoveries 1 | . . . . . . . . 1 Exploration | -11 -10 -9 -9 -8 -7 -7 -7 -5 ------------- Run | Yrd Mat Mat Min Mat Fac Sto Rec Fac Turns Passed 7582 | 174 687 873 358 988 1065 1076 1590 771 Spaces Moved 3936 | 79 343 409 225 489 548 580 904 359 Core 4 | 4 . . . . . . . . Treads 714 | 75 343 295 . . . . 1 . Legs . | . . . . . . . . . Wheels 3218 | . . 114 225 489 548 580 903 359 Hover . | . . . . . . . . . Flight . | . . . . . . . . . Fastest Speed 50 | 50 160 140 130 130 125 125 123 116 Average Speed 140 | 154 160 156 133 140 145 125 136 127 Slowest Speed 560 | 160 160 240 140 230 230 140 560 150 Overloaded Moves . | . . . . . . . . . Propulsion Burnouts . | . . . . . . . . . Robots Hopped . | . . . . . . . . . Cave-ins Triggered . | . . . . . . . . . Exploration Rate (%) 43 | 6 63 39 50 41 9 75 98 11 Regions Visited 8 Branch Regions 3 Pre-discovered Areas 6 | . . . . . . . 6 . Known Exits Taken 1 | . . . . . 1 . . . Unknown Exits Taken 7 | 1 1 1 1 1 . 1 1 . Scrap Searched 1 | . . . 1 . . . . . Spaces Dug . | . . . . . . . . . Terrain Destroyed 130 | . . 17 25 21 2 6 7 52 Melee . | . . . . . . . . . Projectile 29 | . . . . . 2 6 7 14 AOE 101 | . . 17 25 21 . . . 38 Terrain Rammed . | . . . . . . . . . Walls Destroyed . | . . . . . . . . . Machines Disabled . | . . . . . . . . . Actions | -11 -10 -9 -9 -8 -7 -7 -7 -5 --------- Run | Yrd Mat Mat Min Mat Fac Sto Rec Fac Total 5301 | 105 415 561 261 670 709 835 1219 526 Wait 505 | 3 21 57 7 78 64 144 69 62 Move 3928 | 78 342 408 224 488 547 579 903 359 Hop . | . . . . . . . . . Pick Up 78 | 3 8 16 5 10 16 9 1 10 Fast Attach 68 | 7 3 9 1 7 8 16 6 11 Attach 30 | . . 3 . 5 3 1 4 14 Detach 22 | 1 2 4 . 4 3 1 4 3 Swap 43 | . 3 6 6 8 7 8 3 2 Drop 98 | . 3 22 7 16 10 32 3 5 Fire 320 | 13 33 36 11 54 49 45 20 59 Melee . | . . . . . . . . . Ram 2 | . . . . . . . 1 1 Kick . | . . . . . . . . . Crush . | . . . . . . . . . Escape Stasis . | . . . . . . . . . Rewire 207 | . . . . . 2 . 205 . Trap . | . . . . . . . . . Miscellaneous . | . . . . . . . . . Route ------- -11/Scrapyard -10/Materials (discovered 2 exits: *Mat / [*Min]) -9/Materials -9/Mines -8/Materials -7/Factory -7/Storage (discovered 2 exits: [*Fac] / *Rec) -7/Recycling -5/Factory History --------- Turn | Location | Event 15 | -11/Scrapyard | Discovered new exit (range 15) 175 | -11/Scrapyard | Entered Materials 314 | -10/Materials | Build established: Mutant 549 | -10/Materials | Discovered new exit (range 11) 733 | -10/Materials | Discovered new exit (range 10) 862 | -10/Materials | Entered another Materials area 862 | -9/Materials | Evolved 2 slots: Weapon x2 1298 | -9/Materials | Build established: Scavenger-Gunner 1535 | -9/Materials | Discovered new exit (range 14) 1735 | -9/Materials | Entered Mines 1978 | -9/Mines | Joined a pair of Derelicts in attacking an 0b10 outpost 2074 | -9/Mines | Discovered new exit (range 12) 2089 | -9/Mines | Received a Rocket Launcher from a helpful Derelict 2093 | -9/Mines | Entered Materials 2093 | -8/Materials | Evolved 2 slots: Utility x2 2387 | -8/Materials | Build established: Scavenger-Tank 2738 | -8/Materials | Discovered new exit (range 14) 3081 | -8/Materials | Entered Factory 3081 | -7/Factory | Evolved 2 slots: Propulsion x2 3100 | -7/Factory | Discovered new exit (range 9) 3491 | -7/Factory | Identified exit to Storage 4146 | -7/Factory | Entered Storage 4190 | -7/Storage | Repaired Hrd. Medium Armor Plating 4828 | -7/Storage | Discovered new exit (range 14) 5217 | -7/Storage | Used back door to open Recycling access 5217 | -7/Storage | Discovered new exit (range 5) 5222 | -7/Storage | Entered Recycling 5291 | -7/Recycling | Destroyed 7 combat bots 5298 | -7/Recycling | Lost 5 parts (2n2u1w) 5363 | -7/Recycling | Found Scrap Engine 5737 | -7/Recycling | Build established: Commander-Tank 6138 | -7/Recycling | Lost 7 allies 6199 | -7/Recycling | Discovered new exit (range 8) 6290 | -7/Recycling | Lost 3 allies 6812 | -7/Recycling | Entered Factory 6812 | -5/Factory | Accompanied by 12 allies 6812 | -5/Factory | Evolved 4 slots: Power x1, Utility x3 6917 | -5/Factory | Lost 10 allies 7112 | -5/Factory | Search patrols dispatched 7310 | -5/Factory | Destroyed 7 combat bots 7407 | -5/Factory | Garrison activated, responded to threat 7490 | -5/Factory | Lost 3 parts (1n2u) 7582 | -5/Factory | Lost 3 parts (1p1n1w) 7583 | -5/Factory | Cargo convoy interrupted 7583 | -5/Factory | Self-destructed Last Messages --------------- 07551_ Gauss Rifle destroyed. 07553_ K-01 Serf collects debris. 07555_ Weapon Cycler melted. 07555_ Lrg. Matter Pod melted. 07555_ X-67 Chaingunner destroyed. 07555_ U-05 Engineer builds a Door. 07555_ R-10 Processor collects Angular Momentum Engine. 07558_ R-10 Processor collects Kinecellerator. 07559_ K-01 Serf collects debris. 07567_ K-01 Serf destroyed. 07572_ Acquired Wheel. 07573_ U-05 Engineer builds a Wall. 07582_ Acquired 10 matter. 07582_ C-30 ARC bursts open, deploying its payload. 07582_ H-66 Slayer unfolds itself. 07582_ E-15 Imp unfolds itself. 07583_ ALERT: Cargo convoy interrupted, initiating access lockdown. 07583_ C-30 ARC bursts open, deploying its payload. 07583_ X-72 Disruptor unfolds itself. 07583_ P-70 Sage unfolds itself. Map ----- +----------------------------------------------------+ | ?????????????????????????????????????????????????? | | ?????????????????????????????????????????????????? | | ?????????????????????????????????????????????????? | | ?????????????????????????????????????????????????? | | ?????????????????????????????????????????????????? | | ?????????????????????????????????????????????????? | | ?????????????????????????????????????????????????? | | ?????????????????????????????????????????????????? | | ?????????????????????????????????????????????????? | | ?????????????????????????????????????????????????? | | ?????????????????????????????????? ??????????????? | | ????????????????????????????????? "??????????????? | | ????????????????????????????????? """????????????? | | ???????????????????????????????? """????????????? | | ???????????????????????????????? ?????????????? | | ??????????????????????????????? ""?????????????? | | ??????????????????????????????? """ ???????????? | | ????????????????????????????## """ "??????????? | | ???????????+##################R ???????????? | | ????????? """????????????? | | ????????? x """????????????? | | ????????? hhh """ """????????? | | ????????? h%h ??????? | | ???????? %Ap ??????? | | ???????? #############R#############?????????? | | ??????? # # u @%%%= #?????????????? | | ?????# #??### """" """%% """ #?????????????? | | ?????# #????# """" "" % Y"%#?????????????? | | ?????# #????# """" """ %""" #?????????????? | | ?????? #????# """" """"R % #?????????????? | | ?????? #????# """ " " % #?????????????? | | ??????? #????# """ "" % #?????????????? | | ???????? #????# """ %""" #?????????????? | | ????????# #???## % %% #?????????????? | | ????????# #?###""####+###########?????????????? | | ????????# #?# " %% #??????????????????? | | ????????# ### " #??????????????????? | | ????????# ## " % #??????????????????? | | ######### ##### #??????????????????? | | #% #??????????????????? | | # #??????????????????? | | / #??????????????????? | | # #??????????????????? | | #??????????????????? | | ## T# " #??????????????????? | | ?#### " #??????????????????? | | ????# " #??????????????????? | | ????# "" """"###??????????????????? | | ????# # ## ###????????????????????? | | ????# #######?##??????????????????????? | +----------------------------------------------------+ Best States ------------- Heat Dissipation 78 Coolant Potential 65 Energy Generation 29 Energy Capacity 480 Matter Stores 300 Matter Capacity 300 Sight Range 16 Robot Scan Range 15 Terrain Scan Density 10 EM Shielding 2 Armor Coverage 225 Resistance: EM 20 Evasion (%) 40 Recoil Reduction 2 Energy Filtering 30 Item Schematics ----------------- Huge Storage Unit | -10/Materials | Hacked Hcp. Storage Unit | -10/Materials | Hacked Hcp. Battery | -10/Materials | Hacked Hpw. Tractor Beam | -9/Materials | Hacked Lrn. Tractor Beam | -8/Materials | Hacked Robot Schematics ------------------ None Fabricated ------------ Nothing Alien Tech Used ----------------- None Achievements -------------- None Challenges ------------ None Game ------ Seed HeavyGatlingShielding Manual? 0 Play Time 01:21:10 Cumulative 53.9 hours Start 2024.06.13 @ 01:16:14 End 2024.06.13 @ 02:49:06 Sessions 3 Manual Loads 0 Difficulty Rogue Special Mode None Game No. 25 Rogue 25 Adventurer 0 Explorer 0 Win Type - Total 1 Types 1/0/0/0/0/0/0/0/0 Lore% 30 Gallery% 46 Achievement% 39 Wizard Run 0 Options --------- Layout 0 ASCII 0 Keyboard 1 Movement Numpad Keybinds 0 Fullscreen 1 Font 18/SmallcapsGlow Map View 76x50 Zoom Use 0% Tactical HUD 1 Map Filters NONE Filters NONE Steam 1 RUN: 787bc3d3-1a2a-406a-a18b-710b06d1537a